Body Name,Body,Service Division,Expense Type,Date Paid,Transaction Ref,Invoice Amount,Supplier Name
East Lindsey District Council,http://statistics.data.gov.uk/id/local-authority/32UC,AD Chief Finance Officer,Catering (Non-Payroll),29/09/2022,30014529,935.00 ,Boston United Football Club Ltd
East Lindsey District Council,http://statistics.data.gov.uk/id/local-authority/32UC,AD Chief Finance Officer,Lincolnshire Legal Services,21/09/2022,30013897,"15,190.39 ",Lincolnshire County Council
East Lindsey District Council,http://statistics.data.gov.uk/id/local-authority/32UC,AD Chief Finance Officer,Lincolnshire Legal Services,21/09/2022,30014351,"17,538.46 ",Lincolnshire County Council
East Lindsey District Council,http://statistics.data.gov.uk/id/local-authority/32UC,AD Chief Finance Officer,Other Income,21/09/2022,30014315,-22.15 ,Unison
East Lindsey District Council,http://statistics.data.gov.uk/id/local-authority/32UC,AD Chief Finance Officer,Other Miscellaneous Expenses,29/09/2022,30014529,80.00 ,Boston United Football Club Ltd
East Lindsey District Council,http://statistics.data.gov.uk/id/local-authority/32UC,AD Chief Finance Officer,Professional and Contractors Fees,23/09/2022,30014102,"2,100.00 ",J2BTC Ltd
East Lindsey District Council,http://statistics.data.gov.uk/id/local-authority/32UC,AD Chief Finance Officer,Professional and Contractors Fees,06/09/2022,30014114,235.04 ,Kings Armoured Security Services Ltd
East Lindsey District Council,http://statistics.data.gov.uk/id/local-authority/32UC,AD Chief Finance Officer,Professional and Contractors Fees,29/09/2022,30014515,235.04 ,Kings Armoured Security Services Ltd
East Lindsey District Council,http://statistics.data.gov.uk/id/local-authority/32UC,AD Chief Finance Officer,Professional and Contractors Fees,29/09/2022,30014541,"1,178.60 ",David Ubaka Placemakers Limited
East Lindsey District Council,http://statistics.data.gov.uk/id/local-authority/32UC,AD Chief Finance Officer,Subscriptions to Organisations and Other Bodies,09/09/2022,30014112,"1,454.59 ",Sandra Whiles Coaching Ltd
East Lindsey District Council,http://statistics.data.gov.uk/id/local-authority/32UC,AD Chief Finance Officer,Telephones,21/09/2022,30014072,865.22 ,BT
East Lindsey District Council,http://statistics.data.gov.uk/id/local-authority/32UC,AD Chief Finance Officer,Transfer Payment to BID,27/09/2022,30014399,"9,196.45 ",Lincolnshire Coastal Destination Bid
East Lindsey District Council,http://statistics.data.gov.uk/id/local-authority/32UC,AD Chief Finance Officer,Vehicle Hire,13/10/2022,30014402,272.18 ,Tjs Self Drive
East Lindsey District Council,http://statistics.data.gov.uk/id/local-authority/32UC,AD Economic Growth,Professional Fees,21/09/2022,30014180,"77,261.00 ",G F Tomlinson Building Limited
East Lindsey District Council,http://statistics.data.gov.uk/id/local-authority/32UC,AD Economic Growth,Professional Fees,29/09/2022,30014576,"1,200.00 ",Ruddocks
East Lindsey District Council,http://statistics.data.gov.uk/id/local-authority/32UC,AD Housing & Wellbeing,Agency Staff,13/09/2022,30014089,488.70 ,Red Rock Partnership Ltd
East Lindsey District Council,http://statistics.data.gov.uk/id/local-authority/32UC,AD Housing & Wellbeing,Agency Staff,06/09/2022,30014111,623.09 ,Red Rock Partnership Ltd
East Lindsey District Council,http://statistics.data.gov.uk/id/local-authority/32UC,AD Housing & Wellbeing,Agency Staff,13/09/2022,30014164,619.02 ,Red Rock Partnership Ltd
East Lindsey District Council,http://statistics.data.gov.uk/id/local-authority/32UC,AD Housing & Wellbeing,Agency Staff,13/09/2022,30014165,317.66 ,Red Rock Partnership Ltd
East Lindsey District Council,http://statistics.data.gov.uk/id/local-authority/32UC,AD Housing & Wellbeing,Agency Staff,21/09/2022,30014338,333.95 ,Red Rock Partnership Ltd
East Lindsey District Council,http://statistics.data.gov.uk/id/local-authority/32UC,AD Housing & Wellbeing,Agency Staff,21/09/2022,30014345,244.35 ,Red Rock Partnership Ltd
East Lindsey District Council,http://statistics.data.gov.uk/id/local-authority/32UC,AD Housing & Wellbeing,Agency Staff,21/09/2022,30014348,635.31 ,Red Rock Partnership Ltd
East Lindsey District Council,http://statistics.data.gov.uk/id/local-authority/32UC,AD Housing & Wellbeing,Bed and Breakfast Accommodation (Homelessness Service),09/09/2022,30013987,"7,056.00 ",Bramley House Guest House
East Lindsey District Council,http://statistics.data.gov.uk/id/local-authority/32UC,AD Housing & Wellbeing,Bed and Breakfast Accommodation (Homelessness Service),06/09/2022,30014016,419.00 ,Yellow Mountain Hotel
East Lindsey District Council,http://statistics.data.gov.uk/id/local-authority/32UC,AD Housing & Wellbeing,Bed and Breakfast Accommodation (Homelessness Service),09/09/2022,30014137,"1,265.00 ",Beeston Lodge Hotel
East Lindsey District Council,http://statistics.data.gov.uk/id/local-authority/32UC,AD Housing & Wellbeing,Bed and Breakfast Accommodation (Homelessness Service),29/09/2022,30014248,320.00 ,Beeston Lodge Hotel
East Lindsey District Council,http://statistics.data.gov.uk/id/local-authority/32UC,AD Housing & Wellbeing,Bed and Breakfast Accommodation (Homelessness Service),29/09/2022,30014249,660.00 ,Beeston Lodge Hotel
East Lindsey District Council,http://statistics.data.gov.uk/id/local-authority/32UC,AD Housing & Wellbeing,Bed and Breakfast Accommodation (Homelessness Service),29/09/2022,30014254,880.00 ,Beeston Lodge Hotel
East Lindsey District Council,http://statistics.data.gov.uk/id/local-authority/32UC,AD Housing & Wellbeing,Bed and Breakfast Accommodation (Homelessness Service),29/09/2022,30014256,420.00 ,Beeston Lodge Hotel
East Lindsey District Council,http://statistics.data.gov.uk/id/local-authority/32UC,AD Housing & Wellbeing,Bed and Breakfast Accommodation (Homelessness Service),29/09/2022,30014257,440.00 ,Beeston Lodge Hotel
East Lindsey District Council,http://statistics.data.gov.uk/id/local-authority/32UC,AD Housing & Wellbeing,Computer Hardware Purchase,15/09/2022,30014059,364.00 ,Vodafone Ltd Corporate
East Lindsey District Council,http://statistics.data.gov.uk/id/local-authority/32UC,AD Housing & Wellbeing,Computer Hardware Purchase,15/09/2022,30014068,364.00 ,Vodafone Ltd Corporate
East Lindsey District Council,http://statistics.data.gov.uk/id/local-authority/32UC,AD Housing & Wellbeing,Furniture and Equipment,06/09/2022,30011038,748.81 ,Alertcom Limited
East Lindsey District Council,http://statistics.data.gov.uk/id/local-authority/32UC,AD Housing & Wellbeing,Furniture and Equipment,06/09/2022,30011040,674.02 ,Alertcom Limited
East Lindsey District Council,http://statistics.data.gov.uk/id/local-authority/32UC,AD Housing & Wellbeing,Furniture and Equipment,23/09/2022,30014113,373.40 ,Mangar International Limited
East Lindsey District Council,http://statistics.data.gov.uk/id/local-authority/32UC,AD Housing & Wellbeing,Furniture and Equipment,29/09/2022,30014194,"1,131.78 ",Alertcom Limited
East Lindsey District Council,http://statistics.data.gov.uk/id/local-authority/32UC,AD Housing & Wellbeing,Furniture and Equipment,27/09/2022,30014500,810.00 ,Woodlandz Retail GY LTD
East Lindsey District Council,http://statistics.data.gov.uk/id/local-authority/32UC,AD Housing & Wellbeing,Grants and Contributions - Where a Service is Received,09/09/2022,30014147,"50,000.00 ",Charis Grants Ltd
East Lindsey District Council,http://statistics.data.gov.uk/id/local-authority/32UC,AD Housing & Wellbeing,Grants and Contributions to Outside Bodies - No Service Received,06/09/2022,30013922,"1,000.00 ",Louth Town Council
East Lindsey District Council,http://statistics.data.gov.uk/id/local-authority/32UC,AD Housing & Wellbeing,Grants and Contributions to Outside Bodies - No Service Received,01/09/2022,30013995,"10,935.34 ",Princebuild Ltd
East Lindsey District Council,http://statistics.data.gov.uk/id/local-authority/32UC,AD Housing & Wellbeing,Grants and Contributions to Outside Bodies - No Service Received,01/09/2022,30013996,"10,045.42 ",Mark Donner Ltd
East Lindsey District Council,http://statistics.data.gov.uk/id/local-authority/32UC,AD Housing & Wellbeing,Grants and Contributions to Outside Bodies - No Service Received,01/09/2022,30013997,520.00 ,Ron Gale and Sons Ltd
East Lindsey District Council,http://statistics.data.gov.uk/id/local-authority/32UC,AD Housing & Wellbeing,Grants and Contributions to Outside Bodies - No Service Received,01/09/2022,30014002,"2,200.00 ",Post Office (payout funding)
East Lindsey District Council,http://statistics.data.gov.uk/id/local-authority/32UC,AD Housing & Wellbeing,Grants and Contributions to Outside Bodies - No Service Received,06/09/2022,30014058,550.00 ,Covenham Parish Council
East Lindsey District Council,http://statistics.data.gov.uk/id/local-authority/32UC,AD Housing & Wellbeing,Grants and Contributions to Outside Bodies - No Service Received,27/09/2022,30014380,"13,776.98 ",Andrew Wrisdale Building Contractor
East Lindsey District Council,http://statistics.data.gov.uk/id/local-authority/32UC,AD Housing & Wellbeing,Grants and Contributions to Outside Bodies - No Service Received,27/09/2022,30014401,"28,372.48 ",Rhino Sensory UK Ltd
East Lindsey District Council,http://statistics.data.gov.uk/id/local-authority/32UC,AD Housing & Wellbeing,Grants and Contributions to Outside Bodies - No Service Received,27/09/2022,30014405,520.00 ,Baptist Building and Roofing Co Ltd
East Lindsey District Council,http://statistics.data.gov.uk/id/local-authority/32UC,AD Housing & Wellbeing,Grants and Contributions to Outside Bodies - No Service Received,27/09/2022,30014419,"17,351.68 ",Denniss and Marwood Ltd
East Lindsey District Council,http://statistics.data.gov.uk/id/local-authority/32UC,AD Housing & Wellbeing,Grants and Contributions to Outside Bodies - No Service Received,27/09/2022,30014420,"9,741.76 ",Denniss and Marwood Ltd
East Lindsey District Council,http://statistics.data.gov.uk/id/local-authority/32UC,AD Housing & Wellbeing,Grants and Contributions to Outside Bodies - No Service Received,27/09/2022,30014421,"10,136.02 ",Dave Howard Building and Joinery Serv
East Lindsey District Council,http://statistics.data.gov.uk/id/local-authority/32UC,AD Housing & Wellbeing,Grants and Contributions to Outside Bodies - No Service Received,27/09/2022,30014422,"13,135.44 ",Brothertoft Build Ltd
East Lindsey District Council,http://statistics.data.gov.uk/id/local-authority/32UC,AD Housing & Wellbeing,Grants and Contributions to Outside Bodies - No Service Received,27/09/2022,30014423,"13,716.48 ",Belton Construction
East Lindsey District Council,http://statistics.data.gov.uk/id/local-authority/32UC,AD Housing & Wellbeing,Grants and Contributions to Outside Bodies - No Service Received,29/09/2022,30014584,"5,066.12 ",Acis HomePlus Limited
East Lindsey District Council,http://statistics.data.gov.uk/id/local-authority/32UC,AD Housing & Wellbeing,Grants and Contributions to Outside Bodies - No Service Received,29/09/2022,30014585,"11,714.00 ",Dolphin Mobility
East Lindsey District Council,http://statistics.data.gov.uk/id/local-authority/32UC,AD Housing & Wellbeing,Grants and Contributions to Outside Bodies - No Service Received,29/09/2022,30014586,"13,686.20 ",Gary Walmsley Construction
East Lindsey District Council,http://statistics.data.gov.uk/id/local-authority/32UC,AD Housing & Wellbeing,Grants and Contributions to Outside Bodies - No Service Received,29/09/2022,30014587,"13,206.20 ",Acis HomePlus Limited
East Lindsey District Council,http://statistics.data.gov.uk/id/local-authority/32UC,AD Housing & Wellbeing,Grants and Contributions to Outside Bodies - No Service Received,29/09/2022,30014590,"14,365.40 ",Acis HomePlus Limited
East Lindsey District Council,http://statistics.data.gov.uk/id/local-authority/32UC,AD Housing & Wellbeing,Grants and Contributions to Outside Bodies - No Service Received,29/09/2022,30014591,"25,493.76 ",Mark Donner Ltd
East Lindsey District Council,http://statistics.data.gov.uk/id/local-authority/32UC,AD Housing & Wellbeing,Grants and Contributions to Outside Bodies - No Service Received,29/09/2022,30014592,"4,458.16 ",Dolphin Mobility
East Lindsey District Council,http://statistics.data.gov.uk/id/local-authority/32UC,AD Housing & Wellbeing,Other Miscellaneous Expenses,15/09/2022,30011391,365.00 ,Keystone Locks
East Lindsey District Council,http://statistics.data.gov.uk/id/local-authority/32UC,AD Housing & Wellbeing,Other Miscellaneous Expenses,06/09/2022,30014015,"1,200.00 ",Corps Monitoring Ltd
East Lindsey District Council,http://statistics.data.gov.uk/id/local-authority/32UC,AD Housing & Wellbeing,Other Miscellaneous Expenses,06/09/2022,30014098,750.00 ,Void Property Cleaning Services Vpcs
East Lindsey District Council,http://statistics.data.gov.uk/id/local-authority/32UC,AD Housing & Wellbeing,Other Miscellaneous Expenses,13/09/2022,30014167,550.00 ,Brians Building Services
East Lindsey District Council,http://statistics.data.gov.uk/id/local-authority/32UC,AD Housing & Wellbeing,Other Miscellaneous Expenses,29/09/2022,30014468,795.89 ,ACS Systems UK Ltd
East Lindsey District Council,http://statistics.data.gov.uk/id/local-authority/32UC,AD Housing & Wellbeing,Other Miscellaneous Expenses,27/09/2022,30014501,280.00 ,Waste Away Clearance Service
East Lindsey District Council,http://statistics.data.gov.uk/id/local-authority/32UC,AD Housing & Wellbeing,Rent Payments,29/09/2022,30014413,695.13 ,Salvation Army
East Lindsey District Council,http://statistics.data.gov.uk/id/local-authority/32UC,AD Housing & Wellbeing,Rent Payments,27/09/2022,30014429,537.00 ,Salvation Army
East Lindsey District Council,http://statistics.data.gov.uk/id/local-authority/32UC,AD Housing & Wellbeing,Rent Payments,27/09/2022,30014430,313.25 ,Salvation Army
East Lindsey District Council,http://statistics.data.gov.uk/id/local-authority/32UC,AD Housing & Wellbeing,Rent Payments,27/09/2022,30014431,"1,193.20 ",Salvation Army
East Lindsey District Council,http://statistics.data.gov.uk/id/local-authority/32UC,AD Housing & Wellbeing,Rent Payments,27/09/2022,30014433,268.50 ,Salvation Army
East Lindsey District Council,http://statistics.data.gov.uk/id/local-authority/32UC,AD Housing & Wellbeing,Staff Training Expenses (Non-Payroll),13/09/2022,30014118,345.00 ,Specialist Vocational Training Ltd
East Lindsey District Council,http://statistics.data.gov.uk/id/local-authority/32UC,AD Leisure & Culture,Buildings Maintenance - Programmed,29/09/2022,30014183,500.00 ,Airco Refrigeration Air Conditioning Ltd
East Lindsey District Council,http://statistics.data.gov.uk/id/local-authority/32UC,AD Leisure & Culture,Buildings Maintenance - Programmed,29/09/2022,30014596,282.50 ,Dalesauna Ltd
East Lindsey District Council,http://statistics.data.gov.uk/id/local-authority/32UC,AD Leisure & Culture,Buildings Maintenance - Responsive,09/09/2022,30014069,"5,652.27 ",TVF UK Limited
East Lindsey District Council,http://statistics.data.gov.uk/id/local-authority/32UC,AD Leisure & Culture,Buildings Maintenance - Responsive,09/09/2022,30014070,"1,792.00 ",Morris Vermaport Ltd
East Lindsey District Council,http://statistics.data.gov.uk/id/local-authority/32UC,AD Leisure & Culture,Buildings Maintenance - Responsive,23/09/2022,30014131,267.60 ,Airco Refrigeration Air Conditioning Ltd
East Lindsey District Council,http://statistics.data.gov.uk/id/local-authority/32UC,AD Leisure & Culture,Buildings Maintenance - Responsive,13/09/2022,30014143,527.00 ,Aegis Technologies
East Lindsey District Council,http://statistics.data.gov.uk/id/local-authority/32UC,AD Leisure & Culture,Buildings Maintenance - Responsive,13/09/2022,30014150,775.00 ,Lincolnshire Roller Shutters
East Lindsey District Council,http://statistics.data.gov.uk/id/local-authority/32UC,AD Leisure & Culture,Buildings Maintenance - Responsive,29/09/2022,30014357,"1,440.31 ",Aaron Services Ltd
East Lindsey District Council,http://statistics.data.gov.uk/id/local-authority/32UC,AD Leisure & Culture,Buildings Maintenance - Responsive,29/09/2022,30014384,211.00 ,H20 Servicing Ltd
East Lindsey District Council,http://statistics.data.gov.uk/id/local-authority/32UC,AD Organisational & Corporate Services,Purchase of Hardware,04/10/2022,30013139,"29,118.78 ",Softcat Plc
East Lindsey District Council,http://statistics.data.gov.uk/id/local-authority/32UC,AD Organisational & Corporate Services,Purchase of Hardware,15/09/2022,30014021,298.00 ,Probrand Limited
East Lindsey District Council,http://statistics.data.gov.uk/id/local-authority/32UC,AD Organisational & Corporate Services,Purchase of Hardware,23/09/2022,30014119,399.78 ,Boxxe Ltd
East Lindsey District Council,http://statistics.data.gov.uk/id/local-authority/32UC,Building Control,Buildings Maintenance - Responsive,29/09/2022,30013766,208.78 ,GRS Signs Ltd
East Lindsey District Council,http://statistics.data.gov.uk/id/local-authority/32UC,Climate Change and Environment,Computer Software Licence Costs,29/09/2022,30014497,"13,965.63 ",Everwarm Ltd
East Lindsey District Council,http://statistics.data.gov.uk/id/local-authority/32UC,Climate Change and Environment,Professional and Contractors Fees,09/09/2022,30014004,"14,443.65 ",Osborne Energy Limited
East Lindsey District Council,http://statistics.data.gov.uk/id/local-authority/32UC,Climate Change and Environment,Professional and Contractors Fees,21/09/2022,30014303,"2,750.00 ",Gleeds Building Surveying Limited
East Lindsey District Council,http://statistics.data.gov.uk/id/local-authority/32UC,Climate Change and Environment,Professional and Contractors Fees,29/09/2022,30014467,"1,951.84 ",Electric Egg
East Lindsey District Council,http://statistics.data.gov.uk/id/local-authority/32UC,Climate Change and Environment,Professional and Contractors Fees,04/10/2022,30014573,"27,729.24 ",Perfect Circle Jv Ltd
East Lindsey District Council,http://statistics.data.gov.uk/id/local-authority/32UC,Climate Change and Environment,Professional and Contractors Fees,04/10/2022,30014611,"6,000.00 ",Gleeds Building Surveying Limited
East Lindsey District Council,http://statistics.data.gov.uk/id/local-authority/32UC,Climate Change and Environment,Professional Fees,09/09/2022,30013836,409.92 ,Everwarm Ltd
East Lindsey District Council,http://statistics.data.gov.uk/id/local-authority/32UC,Climate Change and Environment,Professional Fees,09/09/2022,30013840,409.92 ,Everwarm Ltd
East Lindsey District Council,http://statistics.data.gov.uk/id/local-authority/32UC,Climate Change and Environment,Professional Fees,06/09/2022,30014103,"8,559.92 ",Everwarm Ltd
East Lindsey District Council,http://statistics.data.gov.uk/id/local-authority/32UC,Climate Change and Environment,Professional Fees,27/09/2022,30014353,"5,963.92 ",Everwarm Ltd
East Lindsey District Council,http://statistics.data.gov.uk/id/local-authority/32UC,Climate Change and Environment,Professional Fees,27/09/2022,30014354,"12,808.92 ",Everwarm Ltd
East Lindsey District Council,http://statistics.data.gov.uk/id/local-authority/32UC,Climate Change and Environment,Professional Fees,27/09/2022,30014355,"9,661.92 ",Everwarm Ltd
East Lindsey District Council,http://statistics.data.gov.uk/id/local-authority/32UC,Climate Change and Environment,Professional Fees,27/09/2022,30014356,"12,712.92 ",Everwarm Ltd
East Lindsey District Council,http://statistics.data.gov.uk/id/local-authority/32UC,Climate Change and Environment,Professional Fees,29/09/2022,30014459,"4,475.00 ",Everwarm Ltd
East Lindsey District Council,http://statistics.data.gov.uk/id/local-authority/32UC,Climate Change and Environment,Professional Fees,29/09/2022,30014460,697.92 ,Everwarm Ltd
East Lindsey District Council,http://statistics.data.gov.uk/id/local-authority/32UC,Climate Change and Environment,Professional Fees,29/09/2022,30014461,"6,159.92 ",Everwarm Ltd
East Lindsey District Council,http://statistics.data.gov.uk/id/local-authority/32UC,Climate Change and Environment,Professional Fees,29/09/2022,30014462,"6,263.92 ",Everwarm Ltd
East Lindsey District Council,http://statistics.data.gov.uk/id/local-authority/32UC,Climate Change and Environment,Professional Fees,29/09/2022,30014463,"10,257.91 ",Everwarm Ltd
East Lindsey District Council,http://statistics.data.gov.uk/id/local-authority/32UC,Climate Change and Environment,Professional Fees,29/09/2022,30014464,"7,763.92 ",Everwarm Ltd
East Lindsey District Council,http://statistics.data.gov.uk/id/local-authority/32UC,Climate Change and Environment,Professional Fees,29/09/2022,30014465,"8,943.92 ",Everwarm Ltd
East Lindsey District Council,http://statistics.data.gov.uk/id/local-authority/32UC,Climate Change and Environment,Professional Fees,29/09/2022,30014472,"10,514.92 ",Everwarm Ltd
East Lindsey District Council,http://statistics.data.gov.uk/id/local-authority/32UC,Climate Change and Environment,Professional Fees,29/09/2022,30014474,"6,159.92 ",Everwarm Ltd
East Lindsey District Council,http://statistics.data.gov.uk/id/local-authority/32UC,Climate Change and Environment,Professional Fees,29/09/2022,30014475,"6,263.92 ",Everwarm Ltd
East Lindsey District Council,http://statistics.data.gov.uk/id/local-authority/32UC,Climate Change and Environment,Professional Fees,29/09/2022,30014480,697.92 ,Everwarm Ltd
East Lindsey District Council,http://statistics.data.gov.uk/id/local-authority/32UC,Climate Change and Environment,Professional Fees,29/09/2022,30014481,"2,097.92 ",Everwarm Ltd
East Lindsey District Council,http://statistics.data.gov.uk/id/local-authority/32UC,Climate Change and Environment,Professional Fees,29/09/2022,30014484,"6,551.92 ",Everwarm Ltd
East Lindsey District Council,http://statistics.data.gov.uk/id/local-authority/32UC,Climate Change and Environment,Professional Fees,29/09/2022,30014485,"12,062.32 ",Everwarm Ltd
East Lindsey District Council,http://statistics.data.gov.uk/id/local-authority/32UC,Climate Change and Environment,Professional Fees,29/09/2022,30014486,"8,229.92 ",Everwarm Ltd
East Lindsey District Council,http://statistics.data.gov.uk/id/local-authority/32UC,Climate Change and Environment,Professional Fees,29/09/2022,30014487,"8,383.92 ",Everwarm Ltd
East Lindsey District Council,http://statistics.data.gov.uk/id/local-authority/32UC,Climate Change and Environment,Professional Fees,29/09/2022,30014490,"15,759.92 ",Everwarm Ltd
East Lindsey District Council,http://statistics.data.gov.uk/id/local-authority/32UC,Climate Change and Environment,Professional Fees,29/09/2022,30014491,"18,587.92 ",Everwarm Ltd
East Lindsey District Council,http://statistics.data.gov.uk/id/local-authority/32UC,Climate Change and Environment,Professional Fees,29/09/2022,30014492,"6,914.92 ",Everwarm Ltd
East Lindsey District Council,http://statistics.data.gov.uk/id/local-authority/32UC,Climate Change and Environment,Professional Fees,29/09/2022,30014493,889.92 ,Everwarm Ltd
East Lindsey District Council,http://statistics.data.gov.uk/id/local-authority/32UC,Climate Change and Environment,Professional Fees,29/09/2022,30014494,"10,643.92 ",Everwarm Ltd
East Lindsey District Council,http://statistics.data.gov.uk/id/local-authority/32UC,Climate Change and Environment,Professional Fees,29/09/2022,30014495,"14,058.02 ",Everwarm Ltd
East Lindsey District Council,http://statistics.data.gov.uk/id/local-authority/32UC,Climate Change and Environment,Professional Fees,29/09/2022,30014496,"12,383.92 ",Everwarm Ltd
East Lindsey District Council,http://statistics.data.gov.uk/id/local-authority/32UC,Climate Change and Environment,Professional Fees,29/09/2022,30014499,"22,211.92 ",Everwarm Ltd
East Lindsey District Council,http://statistics.data.gov.uk/id/local-authority/32UC,Climate Change and Environment,Professional Fees,29/09/2022,30014506,"6,263.92 ",Everwarm Ltd
East Lindsey District Council,http://statistics.data.gov.uk/id/local-authority/32UC,Climate Change and Environment,Professional Fees,29/09/2022,30014511,"10,874.92 ",Everwarm Ltd
East Lindsey District Council,http://statistics.data.gov.uk/id/local-authority/32UC,Climate Change and Environment,Professional Fees,29/09/2022,30014514,"10,874.92 ",Everwarm Ltd
East Lindsey District Council,http://statistics.data.gov.uk/id/local-authority/32UC,Climate Change and Environment,Professional Fees,29/09/2022,30014517,"12,413.92 ",Everwarm Ltd
East Lindsey District Council,http://statistics.data.gov.uk/id/local-authority/32UC,Climate Change and Environment,Professional Fees,29/09/2022,30014518,"13,273.92 ",Everwarm Ltd
East Lindsey District Council,http://statistics.data.gov.uk/id/local-authority/32UC,Climate Change and Environment,Professional Fees,29/09/2022,30014519,"9,084.92 ",Everwarm Ltd
East Lindsey District Council,http://statistics.data.gov.uk/id/local-authority/32UC,Climate Change and Environment,Professional Fees,29/09/2022,30014520,"4,682.92 ",Everwarm Ltd
East Lindsey District Council,http://statistics.data.gov.uk/id/local-authority/32UC,Climate Change and Environment,Professional Fees,29/09/2022,30014521,"5,413.92 ",Everwarm Ltd
East Lindsey District Council,http://statistics.data.gov.uk/id/local-authority/32UC,Climate Change and Environment,Professional Fees,29/09/2022,30014522,"18,943.92 ",Everwarm Ltd
East Lindsey District Council,http://statistics.data.gov.uk/id/local-authority/32UC,Climate Change and Environment,Professional Fees,29/09/2022,30014523,"11,763.92 ",Everwarm Ltd
East Lindsey District Council,http://statistics.data.gov.uk/id/local-authority/32UC,Climate Change and Environment,Professional Fees,29/09/2022,30014524,"1,059.92 ",Everwarm Ltd
East Lindsey District Council,http://statistics.data.gov.uk/id/local-authority/32UC,Climate Change and Environment,Professional Fees,04/10/2022,30014525,"96,279.18 ",Everwarm Ltd
East Lindsey District Council,http://statistics.data.gov.uk/id/local-authority/32UC,DC Revenues & Benefits,Council Tax,21/09/2022,30014037,"1,000.00 ",Post Office Limited
East Lindsey District Council,http://statistics.data.gov.uk/id/local-authority/32UC,DC Revenues & Benefits,Council Tax,04/10/2022,30014352,"6,462.00 ",Post Office Limited
East Lindsey District Council,http://statistics.data.gov.uk/id/local-authority/32UC,DC Revenues & Benefits,Court Costs,29/09/2022,30014575,"1,454.50 ",Central Finance Unit
East Lindsey District Council,http://statistics.data.gov.uk/id/local-authority/32UC,Development Control,Legal Fees,29/09/2022,30014334,750.00 ,Mark Simmonds Planning Services
East Lindsey District Council,http://statistics.data.gov.uk/id/local-authority/32UC,East Lindsey Balance Sheet,ST Debtors HB Overpayments Control Account,23/09/2022,30014071,524.11 ,Platform Housing Limited
East Lindsey District Council,http://statistics.data.gov.uk/id/local-authority/32UC,Enforcement,Agency Staff,15/09/2022,30013964,"1,876.25 ",G2 Recruitment Solutions
East Lindsey District Council,http://statistics.data.gov.uk/id/local-authority/32UC,Enforcement,Agency Staff,06/10/2022,30014243,"1,943.70 ",G2 Recruitment Solutions
East Lindsey District Council,http://statistics.data.gov.uk/id/local-authority/32UC,Enforcement,Course Fees,21/09/2022,30014339,750.00 ,Ivy Legal
East Lindsey District Council,http://statistics.data.gov.uk/id/local-authority/32UC,Enforcement,Demolition/Site Clearance Costs,06/09/2022,30014108,950.00 ,Waste Away Clearance Service
East Lindsey District Council,http://statistics.data.gov.uk/id/local-authority/32UC,Enforcement,Staff Recruitment,11/10/2022,30014271,"1,852.50 ",G2 Recruitment Solutions
East Lindsey District Council,http://statistics.data.gov.uk/id/local-authority/32UC,Enforcement,Staff Recruitment,11/10/2022,30014272,"1,852.50 ",G2 Recruitment Solutions
East Lindsey District Council,http://statistics.data.gov.uk/id/local-authority/32UC,Enforcement,Staff Recruitment,29/09/2022,30014305,"1,757.50 ",G2 Recruitment Solutions
East Lindsey District Council,http://statistics.data.gov.uk/id/local-authority/32UC,Enforcement,Staff Recruitment,06/10/2022,30014564,"3,420.00 ",G2 Recruitment Solutions
East Lindsey District Council,http://statistics.data.gov.uk/id/local-authority/32UC,Enforcement,Staff Recruitment,13/10/2022,30014570,"1,757.50 ",G2 Recruitment Solutions
East Lindsey District Council,http://statistics.data.gov.uk/id/local-authority/32UC,Enforcement,Staff Recruitment,13/10/2022,30014571,"1,805.00 ",G2 Recruitment Solutions
East Lindsey District Council,http://statistics.data.gov.uk/id/local-authority/32UC,Environmental Health,Furniture and Equipment,23/09/2022,30014125,"1,482.00 ",Campbell Associates Ltd
East Lindsey District Council,http://statistics.data.gov.uk/id/local-authority/32UC,Environmental Health,Other Miscellaneous Expenses,29/09/2022,30014264,387.46 ,GRS Signs Ltd
East Lindsey District Council,http://statistics.data.gov.uk/id/local-authority/32UC,Environmental Health,Professional and Contractors Fees,11/10/2022,30014273,760.00 ,G2 Recruitment Solutions
East Lindsey District Council,http://statistics.data.gov.uk/id/local-authority/32UC,Environmental Health,Professional and Contractors Fees,11/10/2022,30014274,956.25 ,G2 Recruitment Solutions
East Lindsey District Council,http://statistics.data.gov.uk/id/local-authority/32UC,Environmental Health,Professional and Contractors Fees,11/10/2022,30014275,736.25 ,G2 Recruitment Solutions
East Lindsey District Council,http://statistics.data.gov.uk/id/local-authority/32UC,Environmental Health,Professional and Contractors Fees,21/09/2022,30014294,956.25 ,G2 Recruitment Solutions
East Lindsey District Council,http://statistics.data.gov.uk/id/local-authority/32UC,Environmental Health,Professional and Contractors Fees,23/09/2022,30014295,956.25 ,G2 Recruitment Solutions
East Lindsey District Council,http://statistics.data.gov.uk/id/local-authority/32UC,Environmental Health,Professional and Contractors Fees,23/09/2022,30014296,878.75 ,G2 Recruitment Solutions
East Lindsey District Council,http://statistics.data.gov.uk/id/local-authority/32UC,Environmental Health,Professional and Contractors Fees,23/09/2022,30014297,855.00 ,G2 Recruitment Solutions
East Lindsey District Council,http://statistics.data.gov.uk/id/local-authority/32UC,Environmental Health,Professional and Contractors Fees,29/09/2022,30014574,"1,300.00 ",Arnold Funeral Service
East Lindsey District Council,http://statistics.data.gov.uk/id/local-authority/32UC,Growth Relationships & Growth Promotions,Advertising - Events,23/09/2022,30014364,520.92 ,Running Imp Ltd
East Lindsey District Council,http://statistics.data.gov.uk/id/local-authority/32UC,Growth Relationships & Growth Promotions,Agency Staff,15/09/2022,30014161,"1,905.63 ",Michael Page Int Recruitment Ltd
East Lindsey District Council,http://statistics.data.gov.uk/id/local-authority/32UC,Growth Relationships & Growth Promotions,Agency Staff,15/09/2022,30014162,"1,510.80 ",Michael Page Int Recruitment Ltd
East Lindsey District Council,http://statistics.data.gov.uk/id/local-authority/32UC,Growth Relationships & Growth Promotions,Agency Staff,15/09/2022,30014163,"2,694.26 ",Michael Page Int Recruitment Ltd
East Lindsey District Council,http://statistics.data.gov.uk/id/local-authority/32UC,Growth Relationships & Growth Promotions,Other Communication Costs,15/09/2022,30014216,"3,750.00 ",Tom Fleming Creative Consultancy
East Lindsey District Council,http://statistics.data.gov.uk/id/local-authority/32UC,Growth Relationships & Growth Promotions,Other Communication Costs,29/09/2022,30014361,"1,000.00 ",Distract Ltd
East Lindsey District Council,http://statistics.data.gov.uk/id/local-authority/32UC,Growth Relationships & Growth Promotions,Other Communication Costs,29/09/2022,30014561,322.92 ,BrackenboroughLtd
East Lindsey District Council,http://statistics.data.gov.uk/id/local-authority/32UC,Growth Relationships & Growth Promotions,Other Miscellaneous Expenses,21/09/2022,30014307,"4,950.00 ",Skillsreach
East Lindsey District Council,http://statistics.data.gov.uk/id/local-authority/32UC,Growth Relationships & Growth Promotions,Other Miscellaneous Expenses,29/09/2022,30014452,"1,500.00 ",Stonebow Media Ltd
East Lindsey District Council,http://statistics.data.gov.uk/id/local-authority/32UC,Growth Relationships & Growth Promotions,Professional and Contractors Fees,06/09/2022,30014060,"3,480.00 ",AMION Consulting Ltd
East Lindsey District Council,http://statistics.data.gov.uk/id/local-authority/32UC,Growth Relationships & Growth Promotions,Professional and Contractors Fees,21/09/2022,30014293,"2,650.00 ",Rose Regeneration Ltd
East Lindsey District Council,http://statistics.data.gov.uk/id/local-authority/32UC,Growth Relationships & Growth Promotions,Professional and Contractors Fees,21/09/2022,30014300,"2,650.00 ",Rose Regeneration Ltd
East Lindsey District Council,http://statistics.data.gov.uk/id/local-authority/32UC,Growth Relationships & Growth Promotions,Professional and Contractors Fees,21/09/2022,30014301,"2,200.00 ",The Engaging People Company
East Lindsey District Council,http://statistics.data.gov.uk/id/local-authority/32UC,Growth Relationships & Growth Promotions,Professional and Contractors Fees,21/09/2022,30014344,"1,375.00 ",The Engaging People Company
East Lindsey District Council,http://statistics.data.gov.uk/id/local-authority/32UC,Growth Relationships & Growth Promotions,Professional Fees,29/09/2022,30014563,"6,750.00 ",Lk2 Architects Ltd
East Lindsey District Council,http://statistics.data.gov.uk/id/local-authority/32UC,Head of HR & Organisational Development,Payroll - Attachment Of Earnings,21/09/2022,30014311,265.09 ,Child Maintenance Services
East Lindsey District Council,http://statistics.data.gov.uk/id/local-authority/32UC,Head of HR & Organisational Development,Payroll - Lincolnshire Credit Union,21/09/2022,30014314,260.00 ,Notts and Lincs Credit Union Ltd
East Lindsey District Council,http://statistics.data.gov.uk/id/local-authority/32UC,Head of HR & Organisational Development,Payroll - Superannuation AVC,21/09/2022,30014310,978.31 ,Prudential Pension Fund Services
East Lindsey District Council,http://statistics.data.gov.uk/id/local-authority/32UC,Head of HR & Organisational Development,Payroll - Unison,21/09/2022,30014315,738.30 ,Unison
East Lindsey District Council,http://statistics.data.gov.uk/id/local-authority/32UC,Information Technology,Computer Hardware Maintenance,23/09/2022,30013081,"8,157.66 ",Softcat Plc
East Lindsey District Council,http://statistics.data.gov.uk/id/local-authority/32UC,Information Technology,Computer Software Licence Costs,15/09/2022,30013628,550.82 ,Experian
East Lindsey District Council,http://statistics.data.gov.uk/id/local-authority/32UC,Information Technology,Computer Software Licence Costs,29/09/2022,30014290,550.90 ,Phoenix Software Ltd
East Lindsey District Council,http://statistics.data.gov.uk/id/local-authority/32UC,Information Technology,Materials and Consumables,21/09/2022,30014306,213.60 ,Example It
East Lindsey District Council,http://statistics.data.gov.uk/id/local-authority/32UC,Information Technology,Materials and Consumables,29/09/2022,30014530,358.86 ,Example It
East Lindsey District Council,http://statistics.data.gov.uk/id/local-authority/32UC,Information Technology,Materials and Consumables,11/10/2022,30014643,577.40 ,Banner Group Ltd Ta Spectrum
East Lindsey District Council,http://statistics.data.gov.uk/id/local-authority/32UC,Information Technology,Telephones,06/09/2022,30014038,"12,283.89 ",Lincolnshire County Council
East Lindsey District Council,http://statistics.data.gov.uk/id/local-authority/32UC,Information Technology,Telephones,23/09/2022,30014039,468.25 ,Vodafone Ltd Corporate
East Lindsey District Council,http://statistics.data.gov.uk/id/local-authority/32UC,Information Technology,Telephones,23/09/2022,30014040,"2,749.23 ",Vodafone Ltd Corporate
East Lindsey District Council,http://statistics.data.gov.uk/id/local-authority/32UC,Invest East Lindsey,Professional Fees,15/09/2022,30014020,259.95 ,Emprocom Ltd
East Lindsey District Council,http://statistics.data.gov.uk/id/local-authority/32UC,Invest East Lindsey,Professional Fees,27/09/2022,30014482,"1,343.00 ",John Peberdy Partnership
East Lindsey District Council,http://statistics.data.gov.uk/id/local-authority/32UC,Invest East Lindsey,Professional Fees,27/09/2022,30014483,"2,508.25 ",John Peberdy Partnership
East Lindsey District Council,http://statistics.data.gov.uk/id/local-authority/32UC,Invest East Lindsey,Works to Buildings (Main Contractor),06/09/2022,30014079,851.74 ,Buildbase
East Lindsey District Council,http://statistics.data.gov.uk/id/local-authority/32UC,Neighbourhoods,Agency Staff,06/09/2022,30014090,"8,873.72 ",The Workshop (Wisbech) Ltd
East Lindsey District Council,http://statistics.data.gov.uk/id/local-authority/32UC,Neighbourhoods,Agency Staff,15/09/2022,30014202,"8,866.92 ",The Workshop (Wisbech) Ltd
East Lindsey District Council,http://statistics.data.gov.uk/id/local-authority/32UC,Neighbourhoods,Agency Staff,27/09/2022,30014473,"7,163.11 ",The Workshop (Wisbech) Ltd
East Lindsey District Council,http://statistics.data.gov.uk/id/local-authority/32UC,Neighbourhoods,Agency Staff,29/09/2022,30014569,"5,651.59 ",The Workshop (Wisbech) Ltd
East Lindsey District Council,http://statistics.data.gov.uk/id/local-authority/32UC,Neighbourhoods,Agency Staff,04/10/2022,30014629,"5,668.57 ",The Workshop (Wisbech) Ltd
East Lindsey District Council,http://statistics.data.gov.uk/id/local-authority/32UC,Neighbourhoods,Buildings Maintenance - Programmed,29/09/2022,30014140,596.25 ,Stowlin Ltd
East Lindsey District Council,http://statistics.data.gov.uk/id/local-authority/32UC,Neighbourhoods,Buildings Maintenance - Programmed,29/09/2022,30014141,875.00 ,Stowlin Ltd
East Lindsey District Council,http://statistics.data.gov.uk/id/local-authority/32UC,Neighbourhoods,Buildings Maintenance - Programmed,29/09/2022,30014142,596.25 ,Stowlin Ltd
East Lindsey District Council,http://statistics.data.gov.uk/id/local-authority/32UC,Neighbourhoods,Buildings Maintenance - Programmed,29/09/2022,30014335,599.55 ,Stowlin Ltd
East Lindsey District Council,http://statistics.data.gov.uk/id/local-authority/32UC,Neighbourhoods,Buildings Maintenance - Programmed,29/09/2022,30014336,964.05 ,Stowlin Ltd
East Lindsey District Council,http://statistics.data.gov.uk/id/local-authority/32UC,Neighbourhoods,Buildings Maintenance - Programmed,29/09/2022,30014385,426.00 ,Stowlin Ltd
East Lindsey District Council,http://statistics.data.gov.uk/id/local-authority/32UC,Neighbourhoods,Buildings Maintenance - Programmed,29/09/2022,30014386,608.25 ,Stowlin Ltd
East Lindsey District Council,http://statistics.data.gov.uk/id/local-authority/32UC,Neighbourhoods,Buildings Maintenance - Programmed,29/09/2022,30014387,608.25 ,Stowlin Ltd
East Lindsey District Council,http://statistics.data.gov.uk/id/local-authority/32UC,Neighbourhoods,Buildings Maintenance - Programmed,29/09/2022,30014566,"6,666.66 ",Gelder Ltd
East Lindsey District Council,http://statistics.data.gov.uk/id/local-authority/32UC,Neighbourhoods,Buildings Maintenance - Programmed,29/09/2022,30014567,"6,666.67 ",Gelder Ltd
East Lindsey District Council,http://statistics.data.gov.uk/id/local-authority/32UC,Neighbourhoods,Buildings Maintenance - Programmed,29/09/2022,30014568,"6,666.67 ",Gelder Ltd
East Lindsey District Council,http://statistics.data.gov.uk/id/local-authority/32UC,Neighbourhoods,Buildings Maintenance - Programmed,29/09/2022,30014582,925.00 ,JD Johnson Ltd
East Lindsey District Council,http://statistics.data.gov.uk/id/local-authority/32UC,Neighbourhoods,Buildings Maintenance - Programmed,29/09/2022,30014583,475.00 ,JD Johnson Ltd
East Lindsey District Council,http://statistics.data.gov.uk/id/local-authority/32UC,Neighbourhoods,Buildings Maintenance - Programmed,04/10/2022,30014598,707.25 ,Stowlin Ltd
East Lindsey District Council,http://statistics.data.gov.uk/id/local-authority/32UC,Neighbourhoods,Buildings Maintenance - Programmed,04/10/2022,30014599,608.25 ,Stowlin Ltd
East Lindsey District Council,http://statistics.data.gov.uk/id/local-authority/32UC,Neighbourhoods,Buildings Maintenance - Programmed,04/10/2022,30014600,545.70 ,Stowlin Ltd
East Lindsey District Council,http://statistics.data.gov.uk/id/local-authority/32UC,Neighbourhoods,Buildings Maintenance - Responsive,06/09/2022,30014047,450.00 ,Second Element Limited
East Lindsey District Council,http://statistics.data.gov.uk/id/local-authority/32UC,Neighbourhoods,Buildings Maintenance - Responsive,23/09/2022,30014132,360.00 ,Rubaroc
East Lindsey District Council,http://statistics.data.gov.uk/id/local-authority/32UC,Neighbourhoods,Clothing Uniforms And Laundry,23/09/2022,30014122,291.39 ,SMI Int Group
East Lindsey District Council,http://statistics.data.gov.uk/id/local-authority/32UC,Neighbourhoods,Clothing Uniforms And Laundry,29/09/2022,30014340,215.25 ,SMI Int Group
East Lindsey District Council,http://statistics.data.gov.uk/id/local-authority/32UC,Neighbourhoods,Clothing Uniforms And Laundry,29/09/2022,30014466,403.64 ,SMI Int Group
East Lindsey District Council,http://statistics.data.gov.uk/id/local-authority/32UC,Neighbourhoods,Clothing Uniforms And Laundry,04/10/2022,30014516,564.00 ,SMI Int Group
East Lindsey District Council,http://statistics.data.gov.uk/id/local-authority/32UC,Neighbourhoods,Electricity,06/09/2022,30013408,624.00 ,Ingoldmells Parish Council
East Lindsey District Council,http://statistics.data.gov.uk/id/local-authority/32UC,Neighbourhoods,Grounds Maintenance Contract (External),29/09/2022,30014505,"12,105.09 ",Glendale Grounds Management Limited
East Lindsey District Council,http://statistics.data.gov.uk/id/local-authority/32UC,Neighbourhoods,Materials and Consumables,06/09/2022,30014013,517.74 ,Burdens Group Ltd
East Lindsey District Council,http://statistics.data.gov.uk/id/local-authority/32UC,Neighbourhoods,Materials and Consumables,09/09/2022,30014116,"1,948.88 ",Overton (UK) Ltd
East Lindsey District Council,http://statistics.data.gov.uk/id/local-authority/32UC,Neighbourhoods,Materials and Consumables,13/10/2022,30014366,214.50 ,Peacock and Binnington
East Lindsey District Council,http://statistics.data.gov.uk/id/local-authority/32UC,Neighbourhoods,Materials and Consumables,13/10/2022,30014381,359.80 ,Eastern Shires Purchasing Organisation
East Lindsey District Council,http://statistics.data.gov.uk/id/local-authority/32UC,Neighbourhoods,Materials and Consumables,29/09/2022,30014471,996.00 ,Glendale Grounds Management Limited
East Lindsey District Council,http://statistics.data.gov.uk/id/local-authority/32UC,Neighbourhoods,Materials and Consumables,06/10/2022,30014559,"1,605.38 ",Probrush Northern Municipal Spares Ltd
East Lindsey District Council,http://statistics.data.gov.uk/id/local-authority/32UC,Neighbourhoods,Professional and Contractors Fees,06/09/2022,30014019,"1,103.22 ",Sid Dennis and Sons Ltd
East Lindsey District Council,http://statistics.data.gov.uk/id/local-authority/32UC,Neighbourhoods,Professional and Contractors Fees,06/09/2022,30014093,718.11 ,Sid Dennis and Sons Ltd
East Lindsey District Council,http://statistics.data.gov.uk/id/local-authority/32UC,Neighbourhoods,Professional and Contractors Fees,06/09/2022,30014094,228.96 ,Sid Dennis and Sons Ltd
East Lindsey District Council,http://statistics.data.gov.uk/id/local-authority/32UC,Neighbourhoods,Professional and Contractors Fees,29/09/2022,30014262,687.20 ,Sid Dennis and Sons Ltd
East Lindsey District Council,http://statistics.data.gov.uk/id/local-authority/32UC,Neighbourhoods,Professional and Contractors Fees,11/10/2022,30014316,"5,000.00 ",Working Time Solutions Ltd
East Lindsey District Council,http://statistics.data.gov.uk/id/local-authority/32UC,Neighbourhoods,Professional and Contractors Fees,29/09/2022,30014391,420.00 ,H Pawson and Son
East Lindsey District Council,http://statistics.data.gov.uk/id/local-authority/32UC,Neighbourhoods,Professional and Contractors Fees,29/09/2022,30014470,"1,393.21 ",Phs Group
East Lindsey District Council,http://statistics.data.gov.uk/id/local-authority/32UC,Neighbourhoods,Professional and Contractors Fees,27/09/2022,30014509,228.96 ,Sid Dennis and Sons Ltd
East Lindsey District Council,http://statistics.data.gov.uk/id/local-authority/32UC,Neighbourhoods,Staff Training Expenses (Non-Payroll),23/09/2022,30014123,619.00 ,Bucher Municipal
East Lindsey District Council,http://statistics.data.gov.uk/id/local-authority/32UC,Neighbourhoods,Vehicle Hire,27/09/2022,30014196,920.00 ,Burdens Group Ltd
East Lindsey District Council,http://statistics.data.gov.uk/id/local-authority/32UC,Neighbourhoods,Water and Sewerage Charges,06/09/2022,30013408,"1,338.13 ",Ingoldmells Parish Council
East Lindsey District Council,http://statistics.data.gov.uk/id/local-authority/32UC,Neighbourhoods,Water and Sewerage Charges,06/09/2022,30014028,"1,292.38 ",Wave Anglian Water Business National Ltd
East Lindsey District Council,http://statistics.data.gov.uk/id/local-authority/32UC,Organisation Improvement & Development,Postages,27/09/2022,30014285,360.00 ,Royal Mail Group Ltd
East Lindsey District Council,http://statistics.data.gov.uk/id/local-authority/32UC,"Performance, Governance & Commissioning",Agency Staff,06/10/2022,30014612,646.60 ,Hays Specialist Recruitment Limited
East Lindsey District Council,http://statistics.data.gov.uk/id/local-authority/32UC,"Performance, Governance & Commissioning",Computer Hardware Purchase,04/10/2022,30014508,"2,118.00 ",ACS Systems UK Ltd
East Lindsey District Council,http://statistics.data.gov.uk/id/local-authority/32UC,"Performance, Governance & Commissioning",Grants and Contributions to Outside Bodies - No Service Received,01/09/2022,30013998,500.00 ,Derbyshire Children's Holiday Centre
East Lindsey District Council,http://statistics.data.gov.uk/id/local-authority/32UC,"Performance, Governance & Commissioning",Grants and Contributions to Outside Bodies - No Service Received,01/09/2022,30013999,650.00 ,Huttoft Parish Council
East Lindsey District Council,http://statistics.data.gov.uk/id/local-authority/32UC,"Performance, Governance & Commissioning",Grants and Contributions to Outside Bodies - No Service Received,29/09/2022,30014553,750.00 ,Skegness Town Council
East Lindsey District Council,http://statistics.data.gov.uk/id/local-authority/32UC,"Performance, Governance & Commissioning",Staff Recruitment,29/09/2022,30014526,636.00 ,Hays Specialist Recruitment Limited
East Lindsey District Council,http://statistics.data.gov.uk/id/local-authority/32UC,"Performance, Governance & Commissioning",Staff Recruitment,29/09/2022,30014527,636.00 ,Hays Specialist Recruitment Limited
East Lindsey District Council,http://statistics.data.gov.uk/id/local-authority/32UC,"Performance, Governance & Commissioning",Staff Recruitment,29/09/2022,30014528,561.80 ,Hays Specialist Recruitment Limited
East Lindsey District Council,http://statistics.data.gov.uk/id/local-authority/32UC,Planning Policy,Grants and Contributions to Outside Bodies - No Service Received,23/09/2022,30014187,"1,380.00 ",Ingoldmells Parish Council
East Lindsey District Council,http://statistics.data.gov.uk/id/local-authority/32UC,Planning Policy,Professional and Contractors Fees,06/10/2022,30014200,"5,343.75 ",Create Consulting Engineers Ltd
East Lindsey District Council,http://statistics.data.gov.uk/id/local-authority/32UC,Planning Policy,Professional and Contractors Fees,27/09/2022,30014476,"1,353.75 ",Create Consulting Engineers Ltd
East Lindsey District Council,http://statistics.data.gov.uk/id/local-authority/32UC,Property,Agency Staff,06/09/2022,30014099,530.79 ,The Workshop (Wisbech) Ltd
East Lindsey District Council,http://statistics.data.gov.uk/id/local-authority/32UC,Property,Agency Staff,15/09/2022,30014237,343.65 ,The Workshop (Wisbech) Ltd
East Lindsey District Council,http://statistics.data.gov.uk/id/local-authority/32UC,Property,Buildings Maintenance - Programmed,09/09/2022,30014073,"7,267.79 ",Second Element Limited
East Lindsey District Council,http://statistics.data.gov.uk/id/local-authority/32UC,Property,Buildings Maintenance - Programmed,09/09/2022,30014083,252.00 ,Selmec Lincoln Ltd
East Lindsey District Council,http://statistics.data.gov.uk/id/local-authority/32UC,Property,Buildings Maintenance - Responsive,21/09/2022,30014057,260.00 ,Pest Detective Pest Control
East Lindsey District Council,http://statistics.data.gov.uk/id/local-authority/32UC,Property,Buildings Maintenance - Responsive,13/09/2022,30014061,"27,422.85 ",Gelder Ltd
East Lindsey District Council,http://statistics.data.gov.uk/id/local-authority/32UC,Property,Buildings Maintenance - Responsive,29/09/2022,30014357,250.00 ,Aaron Services Ltd
East Lindsey District Council,http://statistics.data.gov.uk/id/local-authority/32UC,Property,Buildings Maintenance - Responsive,04/10/2022,30014597,"1,131.00 ",Bates Environmental Ltd
East Lindsey District Council,http://statistics.data.gov.uk/id/local-authority/32UC,Property,Buildings Maintenance - Responsive,06/10/2022,30014602,260.00 ,Pest Detective Pest Control
East Lindsey District Council,http://statistics.data.gov.uk/id/local-authority/32UC,Property,Buildings Maintenance - Responsive,04/10/2022,30014603,465.00 ,MKM Building Supplies Holdings Limited
East Lindsey District Council,http://statistics.data.gov.uk/id/local-authority/32UC,Property,Buildings Maintenance - Responsive,04/10/2022,30014616,216.00 ,Aegis Technologies
East Lindsey District Council,http://statistics.data.gov.uk/id/local-authority/32UC,Property,Cleaning Contract,29/09/2022,30014332,"1,193.00 ",Easy Clean Marshchapel Ltd
East Lindsey District Council,http://statistics.data.gov.uk/id/local-authority/32UC,Property,Cleaning Contract,29/09/2022,30014333,610.00 ,Easy Clean Marshchapel Ltd
East Lindsey District Council,http://statistics.data.gov.uk/id/local-authority/32UC,Property,Electricity,06/10/2022,30014638,"19,920.52 ",Total Gas and Power Limited
East Lindsey District Council,http://statistics.data.gov.uk/id/local-authority/32UC,Property,Furniture and Equipment,23/09/2022,30014101,390.00 ,International Parking Systems UK Grp Ltd
East Lindsey District Council,http://statistics.data.gov.uk/id/local-authority/32UC,Property,Furniture and Equipment,29/09/2022,30014329,"2,023.20 ",Paperwork
East Lindsey District Council,http://statistics.data.gov.uk/id/local-authority/32UC,Property,Furniture and Equipment,27/09/2022,30014504,453.00 ,Chandlers (Farm Equipment) Ltd
East Lindsey District Council,http://statistics.data.gov.uk/id/local-authority/32UC,Property,Legal Fees,13/09/2022,30014158,"1,336.50 ",Freeths LLP
East Lindsey District Council,http://statistics.data.gov.uk/id/local-authority/32UC,Property,Legal Fees,27/09/2022,30014449,"4,160.00 ",Squire Patton Boggs UK LLP
East Lindsey District Council,http://statistics.data.gov.uk/id/local-authority/32UC,Property,Maintenance,09/09/2022,30013984,437.71 ,Chandlers (Farm Equipment) Ltd
East Lindsey District Council,http://statistics.data.gov.uk/id/local-authority/32UC,Property,Maintenance,06/09/2022,30014077,846.50 ,The Tractor Shop
East Lindsey District Council,http://statistics.data.gov.uk/id/local-authority/32UC,Property,Other Communication Costs,29/09/2022,30014266,300.00 ,Digicube Ltd
East Lindsey District Council,http://statistics.data.gov.uk/id/local-authority/32UC,Property,Other Communication Costs,29/09/2022,30014267,300.00 ,Digicube Ltd
East Lindsey District Council,http://statistics.data.gov.uk/id/local-authority/32UC,Property,Other Communication Costs,04/10/2022,30014578,368.32 ,New Start Networks Ltd
East Lindsey District Council,http://statistics.data.gov.uk/id/local-authority/32UC,Property,Other Miscellaneous Expenses,15/09/2022,30013973,"6,223.79 ",Pure Audio Visual Ltd
East Lindsey District Council,http://statistics.data.gov.uk/id/local-authority/32UC,Property,Other Miscellaneous Expenses,04/10/2022,30014507,600.00 ,C and R Removals and Storage
East Lindsey District Council,http://statistics.data.gov.uk/id/local-authority/32UC,Property,Other Private Contractors,15/09/2022,30013627,"3,250.00 ",Lambert Smith Hampton
East Lindsey District Council,http://statistics.data.gov.uk/id/local-authority/32UC,Property,Other Private Contractors,06/09/2022,30014091,900.00 ,Brink Media Ltd
East Lindsey District Council,http://statistics.data.gov.uk/id/local-authority/32UC,Property,Other Private Contractors,29/09/2022,30014572,840.00 ,Neil Warrilow Painting and Decorating
East Lindsey District Council,http://statistics.data.gov.uk/id/local-authority/32UC,Property,Payments to Bodies in Respect of Income Collected,04/10/2022,30014589,"5,894.04 ",Tesco Stores Ltd
East Lindsey District Council,http://statistics.data.gov.uk/id/local-authority/32UC,Property,Professional and Contractors Fees,15/09/2022,30013990,"6,562.80 ",Biffa Waste Services Ltd
East Lindsey District Council,http://statistics.data.gov.uk/id/local-authority/32UC,Property,Professional and Contractors Fees,06/09/2022,30014041,800.00 ,EKM Ltd
East Lindsey District Council,http://statistics.data.gov.uk/id/local-authority/32UC,Property,Professional and Contractors Fees,27/09/2022,30014236,"1,240.00 ",M.A.P Security Solutions Ltd
East Lindsey District Council,http://statistics.data.gov.uk/id/local-authority/32UC,Property,Professional and Contractors Fees,11/10/2022,30014265,"1,856.25 ",Vivid Resourcing
East Lindsey District Council,http://statistics.data.gov.uk/id/local-authority/32UC,Property,Professional and Contractors Fees,11/10/2022,30014320,"31,395.62 ",International Parking Systems UK Grp Ltd
East Lindsey District Council,http://statistics.data.gov.uk/id/local-authority/32UC,Property,Professional and Contractors Fees,27/09/2022,30014324,"2,898.45 ",Kings Armoured Security Services Ltd
East Lindsey District Council,http://statistics.data.gov.uk/id/local-authority/32UC,Property,Professional and Contractors Fees,27/09/2022,30014325,"2,788.23 ",Kings Armoured Security Services Ltd
East Lindsey District Council,http://statistics.data.gov.uk/id/local-authority/32UC,Property,Professional and Contractors Fees,21/09/2022,30014347,"50,955.00 ",Blachere Illumination UK Ltd
East Lindsey District Council,http://statistics.data.gov.uk/id/local-authority/32UC,Property,Professional and Contractors Fees,29/09/2022,30014363,337.22 ,Sid Dennis and Sons Ltd
East Lindsey District Council,http://statistics.data.gov.uk/id/local-authority/32UC,Property,Professional and Contractors Fees,29/09/2022,30014477,551.25 ,Vivid Resourcing
East Lindsey District Council,http://statistics.data.gov.uk/id/local-authority/32UC,Property,Professional and Contractors Fees,27/09/2022,30014502,280.00 ,Olsens
East Lindsey District Council,http://statistics.data.gov.uk/id/local-authority/32UC,Property,Professional Fees,29/09/2022,30014396,560.00 ,Axis Surveys Ltd
East Lindsey District Council,http://statistics.data.gov.uk/id/local-authority/32UC,Property,Stationery,04/10/2022,30014556,"1,580.00 ",Integrity Print Ltd
East Lindsey District Council,http://statistics.data.gov.uk/id/local-authority/32UC,Property,Water and Sewerage Charges,06/09/2022,30014030,"1,236.08 ",Wave Anglian Water Business National Ltd
East Lindsey District Council,http://statistics.data.gov.uk/id/local-authority/32UC,Public Protection,Advertising - Events,29/09/2022,30014414,400.00 ,National World Publishing Ltd
East Lindsey District Council,http://statistics.data.gov.uk/id/local-authority/32UC,Public Protection,Grants and Contributions - Where a Service is Received,15/09/2022,30014217,"28,289.01 ",Boston Borough Council
East Lindsey District Council,http://statistics.data.gov.uk/id/local-authority/32UC,Public Protection,Grants and Contributions - Where a Service is Received,15/09/2022,30014218,"30,728.13 ",Boston Borough Council
East Lindsey District Council,http://statistics.data.gov.uk/id/local-authority/32UC,Public Protection,Grants and Contributions - Where a Service is Received,21/09/2022,30014220,"97,888.00 ",Boston Borough Council
East Lindsey District Council,http://statistics.data.gov.uk/id/local-authority/32UC,Public Protection,Other Miscellaneous Expenses,23/09/2022,30014129,"4,320.00 ",Videcom Security Limited
East Lindsey District Council,http://statistics.data.gov.uk/id/local-authority/32UC,Public Protection,Professional and Contractors Fees,06/10/2022,30014230,934.50 ,Videcom Security Limited
East Lindsey District Council,http://statistics.data.gov.uk/id/local-authority/32UC,Waste,Agency Staff,06/09/2022,30014092,732.00 ,Reilyn Ltd (DriverHire)
East Lindsey District Council,http://statistics.data.gov.uk/id/local-authority/32UC,Waste,Agency Staff,27/09/2022,30014219,732.00 ,Reilyn Ltd (DriverHire)
East Lindsey District Council,http://statistics.data.gov.uk/id/local-authority/32UC,Waste,Agency Staff,29/09/2022,30014270,"7,876.12 ",Red Rock Partnership Ltd
East Lindsey District Council,http://statistics.data.gov.uk/id/local-authority/32UC,Waste,Agency Staff,21/09/2022,30014304,"8,280.94 ",Red Rock Partnership Ltd
East Lindsey District Council,http://statistics.data.gov.uk/id/local-authority/32UC,Waste,Agency Staff,23/09/2022,30014346,"6,837.59 ",Red Rock Partnership Ltd
East Lindsey District Council,http://statistics.data.gov.uk/id/local-authority/32UC,Waste,Agency Staff,27/09/2022,30014448,585.60 ,Reilyn Ltd (DriverHire)
East Lindsey District Council,http://statistics.data.gov.uk/id/local-authority/32UC,Waste,Agency Staff,29/09/2022,30014531,"7,102.47 ",Red Rock Partnership Ltd
East Lindsey District Council,http://statistics.data.gov.uk/id/local-authority/32UC,Waste,Agency Staff,29/09/2022,30014558,732.00 ,Reilyn Ltd (DriverHire)
East Lindsey District Council,http://statistics.data.gov.uk/id/local-authority/32UC,Waste,External Printing and Design Costs,21/09/2022,30014160,"6,749.60 ",Daymark Ltd
East Lindsey District Council,http://statistics.data.gov.uk/id/local-authority/32UC,Waste,External Printing and Design Costs,06/10/2022,30014577,"5,522.40 ",Daymark Ltd
East Lindsey District Council,http://statistics.data.gov.uk/id/local-authority/32UC,Waste,Fuel and Oil,09/09/2022,30014148,"4,655.18 ",Allstar Business Solutions Ltd
East Lindsey District Council,http://statistics.data.gov.uk/id/local-authority/32UC,Waste,Fuel and Oil,29/09/2022,30014302,436.75 ,Watson Fuels
East Lindsey District Council,http://statistics.data.gov.uk/id/local-authority/32UC,Waste,Fuel and Oil,04/10/2022,30014349,"5,707.57 ",Allstar Business Solutions Ltd
East Lindsey District Council,http://statistics.data.gov.uk/id/local-authority/32UC,Waste,Fuel and Oil,29/09/2022,30014542,"5,109.84 ",Allstar Business Solutions Ltd
East Lindsey District Council,http://statistics.data.gov.uk/id/local-authority/32UC,Waste,Maintenance,29/09/2022,30014555,500.00 ,Excel Trucks Ltd
East Lindsey District Council,http://statistics.data.gov.uk/id/local-authority/32UC,Waste,Materials and Consumables,23/09/2022,30014126,403.00 ,Arco Ltd
East Lindsey District Council,http://statistics.data.gov.uk/id/local-authority/32UC,Waste,Materials and Consumables,06/10/2022,30014215,771.90 ,Fueltek Ltd
East Lindsey District Council,http://statistics.data.gov.uk/id/local-authority/32UC,Waste,Materials and Consumables,06/10/2022,30014545,805.00 ,ESE Ltd
East Lindsey District Council,http://statistics.data.gov.uk/id/local-authority/32UC,Waste,Materials and Consumables,06/10/2022,30014562,"8,241.00 ",ESE Ltd
East Lindsey District Council,http://statistics.data.gov.uk/id/local-authority/32UC,Waste,Other Private Contractors,29/09/2022,30014540,"1,116.10 ",Glass Recycling UK Ltd
East Lindsey District Council,http://statistics.data.gov.uk/id/local-authority/32UC,Waste,Professional and Contractors Fees,15/09/2022,30014173,"1,250.00 ",Logistics UK
East Lindsey District Council,http://statistics.data.gov.uk/id/local-authority/32UC,Waste,Professional and Contractors Fees,11/10/2022,30014259,226.57 ,Restore Datashred
East Lindsey District Council,http://statistics.data.gov.uk/id/local-authority/32UC,Waste,Workshop Parts,06/09/2022,30013983,360.31 ,Bucher Municipal
East Lindsey District Council,http://statistics.data.gov.uk/id/local-authority/32UC,Waste,Workshop Parts,15/09/2022,30013988,"1,257.81 ",Terberg Matec UK
East Lindsey District Council,http://statistics.data.gov.uk/id/local-authority/32UC,Waste,Workshop Parts,06/09/2022,30014096,230.00 ,Eastwick Engineering Services Ltd
East Lindsey District Council,http://statistics.data.gov.uk/id/local-authority/32UC,Waste,Workshop Parts,23/09/2022,30014106,288.00 ,Partic Motor Spares Ltd
East Lindsey District Council,http://statistics.data.gov.uk/id/local-authority/32UC,Waste,Workshop Parts,23/09/2022,30014120,337.45 ,Partic Motor Spares Ltd
East Lindsey District Council,http://statistics.data.gov.uk/id/local-authority/32UC,Waste,Workshop Parts,15/09/2022,30014155,307.50 ,Wilcomatic Ltd
East Lindsey District Council,http://statistics.data.gov.uk/id/local-authority/32UC,Waste,Workshop Parts,21/09/2022,30014169,700.21 ,Bryan Coupland Ltd
East Lindsey District Council,http://statistics.data.gov.uk/id/local-authority/32UC,Waste,Workshop Parts,23/09/2022,30014170,637.66 ,Terberg Matec UK
East Lindsey District Council,http://statistics.data.gov.uk/id/local-authority/32UC,Waste,Workshop Parts,15/09/2022,30014174,233.74 ,Pirtek
East Lindsey District Council,http://statistics.data.gov.uk/id/local-authority/32UC,Waste,Workshop Parts,29/09/2022,30014175,"1,265.88 ",Bucher Municipal
East Lindsey District Council,http://statistics.data.gov.uk/id/local-authority/32UC,Waste,Workshop Parts,27/09/2022,30014231,717.99 ,Pirtek
East Lindsey District Council,http://statistics.data.gov.uk/id/local-authority/32UC,Waste,Workshop Parts,29/09/2022,30014233,649.47 ,Waste Parts UK Ltd
East Lindsey District Council,http://statistics.data.gov.uk/id/local-authority/32UC,Waste,Workshop Parts,29/09/2022,30014234,387.67 ,Calibration & Consultancy Services (UK) Ltd
East Lindsey District Council,http://statistics.data.gov.uk/id/local-authority/32UC,Waste,Workshop Parts,06/10/2022,30014235,250.00 ,C & A Contracting
East Lindsey District Council,http://statistics.data.gov.uk/id/local-authority/32UC,Waste,Workshop Parts,11/10/2022,30014255,657.14 ,Partic Motor Spares Ltd
East Lindsey District Council,http://statistics.data.gov.uk/id/local-authority/32UC,Waste,Workshop Parts,11/10/2022,30014263,250.00 ,Eastwick Engineering Services Ltd
East Lindsey District Council,http://statistics.data.gov.uk/id/local-authority/32UC,Waste,Workshop Parts,11/10/2022,30014323,255.23 ,Partic Motor Spares Ltd
East Lindsey District Council,http://statistics.data.gov.uk/id/local-authority/32UC,Waste,Workshop Parts,13/10/2022,30014368,547.74 ,Partic Motor Spares Ltd
East Lindsey District Council,http://statistics.data.gov.uk/id/local-authority/32UC,Waste,Workshop Parts,13/10/2022,30014371,316.70 ,Dennis Eagle Ltd
East Lindsey District Council,http://statistics.data.gov.uk/id/local-authority/32UC,Waste,Workshop Parts,13/10/2022,30014372,278.26 ,Dennis Eagle Ltd
East Lindsey District Council,http://statistics.data.gov.uk/id/local-authority/32UC,Waste,Workshop Parts,13/10/2022,30014374,258.65 ,Dennis Eagle Ltd
East Lindsey District Council,http://statistics.data.gov.uk/id/local-authority/32UC,Waste,Workshop Parts,13/10/2022,30014403,220.00 ,M J Windscreens Ltd
East Lindsey District Council,http://statistics.data.gov.uk/id/local-authority/32UC,Waste,Workshop Parts,13/10/2022,30014412,417.52 ,Dennis Eagle Ltd
East Lindsey District Council,http://statistics.data.gov.uk/id/local-authority/32UC,Waste,Workshop Parts,29/09/2022,30014498,"4,758.00 ",Calibration & Consultancy Services (UK) Ltd
East Lindsey District Council,http://statistics.data.gov.uk/id/local-authority/32UC,Waste,Workshop Parts,06/10/2022,30014536,325.77 ,Partic Motor Spares Ltd
East Lindsey District Council,http://statistics.data.gov.uk/id/local-authority/32UC,Waste,Workshop Parts,29/09/2022,30014546,540.00 ,The Tractor Shop
East Lindsey District Council,http://statistics.data.gov.uk/id/local-authority/32UC,Waste,Workshop Parts,29/09/2022,30014548,350.00 ,M J Windscreens Ltd
East Lindsey District Council,http://statistics.data.gov.uk/id/local-authority/32UC,Waste,Workshop Parts,29/09/2022,30014549,350.00 ,M J Windscreens Ltd
East Lindsey District Council,http://statistics.data.gov.uk/id/local-authority/32UC,Waste,Workshop Parts,29/09/2022,30014551,"1,480.34 ",N T Shaw of Louth
East Lindsey District Council,http://statistics.data.gov.uk/id/local-authority/32UC,Waste,Workshop Parts,11/10/2022,30014633,282.22 ,Dennis Eagle Ltd
East Lindsey District Council,http://statistics.data.gov.uk/id/local-authority/32UC,Waste,Workshop Parts,06/10/2022,30014640,715.77 ,Dennis Eagle Ltd
